Cogmind - Beta 15 @@@ ROGUE MODE // 2025.05.08 @ 19:11:26 Player: LustLizard Result: Self-destructed Performance ------------- Evolutions (1) 500 Regions Visited (3) 600 Robots Destroyed (28) 140 Value Destroyed (774) 774 Prototype IDs (1) 20 Alien Tech Used (0) 0 Bonus (0) 0 TOTAL SCORE: 2034 Bonus ------- None Cogmind --------- Core Integrity 373/400 Matter 280/300 Energy 152/160 System Corruption 0% Temperature Cool (66) Movement Flying (197) Ox2 Location -9/Materials Parts ------- > --- POWER (1) -------- Light Nuclear Core > --- PROPULSION (2) --- Flight Unit Flight Unit > --- UTILITY (4) ------ Medium Storage Unit Terrain Scanner > --- WEAPON (2) ------- Improved EM Shotgun Improved EM Shotgun > --- INVENTORY (10) --- Hover Unit Flight Unit Improved Heat Sink Medium Storage Unit Signal Interpreter Hardened Light Armor Plating Grenade Launcher Mining Laser Peak State ------------ > --- POWER ------------ Ion Engine > --- PROPULSION ------- Improved Treads Hover Unit > --- UTILITY ---------- Medium Storage Unit Terrain Scanner Hardened Light Armor Plating > --- WEAPON ----------- Improved EM Shotgun Improved EM Shotgun > --- INVENTORY -------- Light Nuclear Core Light Treads Flight Unit Flight Unit Improved Heat Sink Medium Storage Unit Signal Interpreter Improved EM Shotgun Grenade Launcher Mining Laser [Rating: 15] Favorites ----------- Power Ion Engine Engine Ion Engine Power Core Light Nuclear Core Propulsion Aluminum Leg Treads Light Treads Leg Aluminum Leg Wheel Wheel Hover Unit Hover Unit Flight Unit Flight Unit Utility Terrain Scanner Device Terrain Scanner Storage Medium Storage Unit Protection Core Shielding Weapon Improved EM Shotgun Energy Gun Improved EM Shotgun Ballistic Gun Assault Rifle Build | -11 -10 -10 -9 ------- Run | Yrd Mat Min Mat Slots Evolved 2 | . . . 2 Power . | . . . . Propulsion . | . . . . Utility 2 | . . . 2 Weapon . | . . . . Parts Attached 28 | 4 14 2 8 Power 4 | . 3 . 1 Engine 3 | . 3 . . Core 1 | . . . 1 Reactor . | . . . . Propulsion 12 | 1 4 2 5 Treads 4 | . 2 . 2 Leg 2 | . 2 . . Wheel 1 | 1 . . . Hover 2 | . . 2 . Flight 3 | . . . 3 Utility 6 | 1 4 . 1 Device 1 | . 1 . . Storage 2 | 1 1 . . Processor . | . . . . Hackware . | . . . . Protection 3 | . 2 . 1 Artifact . | . . . . Weapon 6 | 2 3 . 1 Energy Gun 3 | . 2 . 1 Energy Cannon . | . . . . Ballistic Gun 3 | 2 1 . . Ballistic Cannon . | . . . . Launcher . | . . . . Special Weapon . | . . . . Impact Weapon . | . . . . Slashing Weapon . | . . . . Piercing Weapon . | . . . . Special Melee Weapon . | . . . . Unidentified Prototypes 1 | . 1 . . Parts Lost 4 | . 2 . 2 Power 1 | . 1 . . Propulsion 3 | . 1 . 2 Utility . | . . . . Weapon . | . . . . Highest Loss Streak 1 | . 1 . 1 To Critical Strikes . | . . . . Average Backups 8 | 5 8 9 9 Power . | 1 . 1 . Propulsion 2 | 2 2 1 2 Utility 3 | . 3 4 3 Weapon 2 | . 1 3 2 Tool/Special . | . . . . Unused Backups 12 | . 5 . 7 Power . | . . . . Propulsion 4 | . 2 . 2 Utility 3 | . . . 3 Weapon 5 | . 3 . 2 Tool/Special . | . . . . Average Slot Usage (%) 96 | . 98 100 74 Engine 13 | . 13 14 6 Treads 5 | . 7 . 5 Leg 14 | . 18 10 . Wheel 1 | . 2 . . Hover 5 | . . 18 5 Device 10 | . 8 14 11 Storage 13 | . 14 14 11 Protection 3 | . 4 . 5 Energy Gun 21 | . 19 28 18 Ballistic Gun 5 | . 8 . . Peak Build Rating 15 | 4 13 12 15 Average Rating 11 | 2 10 11 12 On Entrance 7 | . 4 12 12 Naked Turns . | . . . . Heaviest Build 27 | 8 22 22 27 Greatest Support 43 | 10 40 20 43 Greatest Overweight (x) 4 | . 1 1 4 Average Overweight (x) . | . . 1 1 Largest Inventory Capacity 10 | 8 10 10 10 Average Capacity 9 | 6 8 10 10 Most Carried 10 | 8 10 10 10 Average Carried 8 | 5 8 9 9 Final Capacity 10 | 8 10 10 10 Final Carried 10 | 8 10 10 8 Class Distribution -------------------- 100% | Mutant Dominant Class ---------------- Mutant | -10/Materials Mutant | -10/Mines Mutant | -9/Materials Resources | -11 -10 -10 -9 ----------- Run | Yrd Mat Min Mat Matter Collected 612 | 127 385 20 80 Remotely . | . . . . Salvage Created 968 | . 516 156 296 Parts 54 | . 25 12 17 Haulers Intercepted . | . . . . Recyclers Shooed 2 | . 2 . . Parts Field Recycled . | . . . . Retrieved Matter . | . . . . Parts Self-Destructed . | . . . . Prevented . | . . . . Kills | -11 -10 -10 -9 ------- Run | Yrd Mat Min Mat Combat Hostiles Destroyed 25 | . 12 5 8 Guns 22 | . 10 5 7 AOE 3 | . 2 . 1 Classes Destroyed 5 | . 3 . 2 Watcher 3 | . 2 . 1 Swarmer 10 | . 3 3 4 Grunt 13 | . 9 2 2 Duelist 1 | . . . 1 Sentry 1 | . . . 1 Best Kill Streak 4 | . 3 3 4 Combat Bots Only 4 | . 3 3 4 Max Kills in Single Turn 2 | . 2 2 2 Gunslinging . | . . . . Exploded 2 | . 2 . 1 Melee . | . . . . Uniques/NPCs Destroyed . | . . . . Combat | -11 -10 -10 -9 -------- Run | Yrd Mat Min Mat Hostile Shots Fired 98 | . 63 9 26 Missed 19 | . 11 1 7 Hits 79 | . 52 8 19 Melee 1 | . . . 1 Projectile 78 | . 52 8 18 Critical Strikes 2 | . 1 . 1 Damage Taken 1057 | . 690 86 281 Core 175 | . 140 8 27 Absorbed by Shields . | . . . . Redirected to Shielding 18 | . 18 . . Core Remaining (%) 70 | 100 . 40 . Volleys Fired 65 | . 43 6 16 Largest 2 | . 2 2 2 Hottest 90 | . 90 90 90 Shots Fired 123 | . 86 12 25 Gun 123 | . 86 12 25 Cannon . | . . . . Launcher . | . . . . Special . | . . . . Kinetic 66 | . 66 . . Thermal . | . . . . Explosive . | . . . . Electromagnetic 57 | . 20 12 25 Robot Hit Streak 12 | . 12 7 10 Robot Miss Streak 4 | . 4 3 4 Penetration Max . | . . . . Secondary Targets 1 | . 1 . . Max Gunslinging Chain 1 | . 1 . . Shots Hit Robots 87 | . 63 7 17 Core Hits 50 | . 27 8 15 Critical Kills . | . . . . Critical Parts Destroyed 1 | . 1 . . Critical Strikes 1 | . 1 . . Destroy 1 | . 1 . . Melee Attacks . | . . . . Impact . | . . . . Slashing . | . . . . Piercing . | . . . . Sneak Attacks . | . . . . Combat Hostiles . | . . . . Follow-up Attacks . | . . . . Damage Inflicted 1378 | . 896 112 370 Guns 1176 | . 773 112 291 Cannons . | . . . . Explosions 202 | . 123 . 79 Melee . | . . . . Ramming . | . . . . Kinetic 512 | . 512 . . Thermal 202 | . 123 . 79 Explosive . | . . . . Electromagnetic 664 | . 261 112 291 Impact . | . . . . Slashing . | . . . . Piercing . | . . . . Highest Corruption . | . . . . Average Corruption . | . . . . Corruption Purged . | . . . . Corruption Blocked . | . . . . Overload Shots . | . . . . Overflow Damage 1 | . . . 1 Projectiles . | . . . . Explosions 1 | . . . 1 Melee . | . . . . Knockbacks . | . . . . Impact . | . . . . Kinetic . | . . . . Secondary . | . . . . Self-Inflicted Damage 87 | . 47 . 40 Shots 3 | . 2 . 1 Rammed . | . . . . Targets Rammed . | . . . . Kicked . | . . . . Crushed . | . . . . Highest Temperature 156 | . 102 120 156 Average Temperature 42 | . 27 56 59 Received Heat Transfer 471 | . 360 30 81 Siege Activations . | . . . . Martial Activations . | . . . . Shielding Activations . | . . . . Robots Disrupted . | . . . . Combat Hostiles . | . . . . Robots Corrupted . | . . . . Combat Hostiles . | . . . . Parts Fried 1 | . . . 1 Impact Corruptions . | . . . . Robots Melted . | . . . . Combat Hostiles . | . . . . Parts Melted . | . . . . Heat Transferred 200 | . 100 . 100 Parts Sabotaged . | . . . . Parts Stolen . | . . . . Parts Stripped . | . . . . Power Chain Reactions 4 | . 2 . 2 Alert | -11 -10 -10 -9 ------- Run | Yrd Mat Min Mat Maximum Alert Level . | . . . . Low Security (%) 100 | 100 100 100 100 Level 1 . | . . . . Level 2 . | . . . . Level 3 . | . . . . Level 4 . | . . . . Level 5 . | . . . . High Security . | . . . . Max Security . | . . . . Peak Influence 130 | . 74 115 130 Initial 8 | . . 8 . Average 26 | . 23 26 55 Influence Increases 740 | . 388 135 217 Destroy 0b10 Robot/C 500 | . 240 100 160 Destroy 0b10 Robot/NC 15 | . 10 . 5 Destroy Leader 116 | . 64 20 32 Successful Hack 40 | . 40 . . Disable Machine 60 | . 30 15 15 Destroy Structure 9 | . 4 . 5 Influence Decreases 613 | . 366 157 90 Entered New Map 14 | . . 14 . Time Decay 579 | . 356 143 80 Lost Part 20 | . 10 . 10 Squads Dispatched 3 | . 2 . 1 Investigation 1 | . 1 . . Extermination . | . . . . Reinforcement 2 | . 1 . 1 Assault . | . . . . Garrison . | . . . . Intercept . | . . . . Searches Triggered . | . . . . Construction Impeded . | . . . . Haulers Reinforced . | . . . . Active Scanning Responses . | . . . . Cargo Convoy Interrupts . | . . . . Stealth | -11 -10 -10 -9 --------- Run | Yrd Mat Min Mat Distress Signals 1 | . . . 1 Communications Jammed . | . . . . Distress Signals . | . . . . Times Spotted 35 | . 17 5 13 Peak Tracking Total 5 | . 3 3 5 Tactical Retreats . | . . . . Traps | -11 -10 -10 -9 ------- Run | Yrd Mat Min Mat Traps Triggered 1 | . 1 . . Indirectly . | . . . . Trap Hack Attempts . | . . . . Triggered . | . . . . Disarmed . | . . . . Reprogrammed . | . . . . Reused . | . . . . Traps Extracted . | . . . . Installed . | . . . . Triggered . | . . . . Machines | -11 -10 -10 -9 ---------- Run | Yrd Mat Min Mat Machines Disabled 4 | . 2 1 1 Max in Single Turn 1 | . 1 1 1 Machines Repaired . | . . . . Machines Dismantled . | . . . . Machines Sabotaged . | . . . . Overloaded Fab Kills . | . . . . Hacking | -11 -10 -10 -9 --------- Run | Yrd Mat Min Mat Machines Accessed 7 | . 6 . 1 Terminals 6 | . 6 . . Fabricators . | . . . . Repair Stations 1 | . . . 1 Recycling Units . | . . . . Scanalyzers . | . . . . Garrison Access . | . . . . Total Hacks 25 | . 23 . 2 Successful 10 | . 9 . 1 Failed 15 | . 14 . 1 Catastrophic 3 | . 3 . . Database Lockouts . | . . . . Manual 12 | . 12 . . Terminals 23 | . 23 . . Fabricators . | . . . . Repair Stations 2 | . . . 2 Recycling Units . | . . . . Scanalyzers . | . . . . Garrison Access . | . . . . Terminal Hacks 8 | . 8 . . Record 1 | . 1 . . Robot Analysis 3 | . 3 . . Level Access Points 1 | . 1 . . Alert Level 1 | . 1 . . Locate Traps 1 | . 1 . . Zone Layout 1 | . 1 . . Fabricator Hacks . | . . . . Repair Station Hacks 1 | . . . 1 Scan Component 1 | . . . 1 Recycling Unit Hacks . | . . . . Scanalyzer . | . . . . Garrison Access Hacks . | . . . . Unauthorized Hacks 1 | . 1 . . Terminals 1 | . 1 . . Assimilate 1 | . 1 . . Fabricators . | . . . . Repair Stations . | . . . . Recycling Units . | . . . . Scanalyzers . | . . . . Garrison Access . | . . . . Data Cores Recovered . | . . . . Used . | . . . . Hacking Detections 7 | . 6 . 1 Full Trace Events . | . . . . Feedback Events . | . . . . Feedback Blocked . | . . . . Robot Schematics Acquired . | . . . . Robots Built . | . . . . Authchips . | . . . . Time . | . . . . Total Robot Build Rating . | . . . . Part Schematics Acquired . | . . . . Parts Built . | . . . . Authchips . | . . . . Time . | . . . . Total Part Build Rating . | . . . . Parts Repaired . | . . . . Time . | . . . . Parts Recycled . | . . . . Recycled Matter . | . . . . Retrieved Matter . | . . . . Retrieved Components . | . . . . Parts Scanalyzed . | . . . . Part Schematics Acquired . | . . . . Parts Damaged . | . . . . Bothacking | -11 -10 -10 -9 ------------ Run | Yrd Mat Min Mat Used RIF Installer . | . . . . Robots Hacked . | . . . . Non-combat . | . . . . Combat . | . . . . Robot Hacks Applied . | . . . . Relay Couplers Released . | . . . . Fabnet Peak Effective % . | . . . . Robots Rewired . | . . . . Allies Hacked . | . . . . Hacks Repelled . | . . . . Allies | -11 -10 -10 -9 -------- Run | Yrd Mat Min Mat Total Allies . | . . . . Largest Group . | . . . . Highest-Rated Group . | . . . . Highest-Rated Ally . | . . . . Total Orders . | . . . . Ally Attacks . | . . . . Total Damage . | . . . . Kills . | . . . . Allies Corrupted . | . . . . Allies Melted . | . . . . Intel | -11 -10 -10 -9 ------- Run | Yrd Mat Min Mat Active Infowar (turns) 1502 | . 750 553 199 Terrain 1502 | . 750 553 199 Robot Analysis Total 3 | . 3 . . Derelict Logs Recovered 2 | . . 2 . Drone Launches . | . . . . Drone Recoveries . | . . . . Exploration | -11 -10 -10 -9 ------------- Run | Yrd Mat Min Mat Turns Passed 2073 | 43 1278 553 199 Spaces Moved 1171 | 37 678 395 61 Core 9 | 9 . . . Treads 149 | . 128 . 21 Legs 508 | . 418 90 . Wheels 160 | 28 132 . . Hover 319 | . . 305 14 Flight 26 | . . . 26 Fastest Speed 50 | 50 95 116 116 Average Speed 148 | 72 156 132 202 Slowest Speed 360 | 80 240 190 360 Overloaded Moves . | . . . . Propulsion Burnouts . | . . . . Robots Hopped . | . . . . Potential Cave-ins . | . . . . Cave-ins Triggered . | . . . . Exploration Rate (%) 46 | 3 86 89 7 Regions Visited 3 Branch Regions 1 Pre-discovered Areas . | . . . . Known Exits Taken 1 | . . 1 . Unknown Exits Taken 2 | 1 1 . . Scrap Searched 1 | . . 1 . Spaces Dug . | . . . . Terrain Destroyed 9 | . 4 . 5 Melee . | . . . . Projectile . | . . . . AOE 9 | . 4 . 5 Terrain Rammed . | . . . . Walls Destroyed . | . . . . Machines Disabled . | . . . . Actions | -11 -10 -10 -9 --------- Run | Yrd Mat Min Mat Total 1401 | 52 823 412 114 Wait 66 | . 46 6 14 Move 1168 | 36 677 394 61 Hop . | . . . . Pick Up 45 | 12 25 2 6 Fast Attach . | . . . . Attach 26 | 4 12 2 8 Detach 1 | . . . 1 Swap 4 | . 2 . 2 Drop 26 | . 18 2 6 Fire 65 | . 43 6 16 Melee . | . . . . Ram . | . . . . Kick . | . . . . Crush . | . . . . Escape Stasis . | . . . . Rewire . | . . . . Trap . | . . . . Miscellaneous . | . . . . Route ------- -11/Scrapyard -10/Materials (discovered 4 exits: *Mat x3 / [*Min]) -10/Mines (discovered 2 exits: *Mat / [*Exi]) -9/Materials (discovered 2 exits: Mat x2) History --------- Turn | Location | Event 14 | -11/Scrapyard | Discovered new exit (range 16) 44 | -11/Scrapyard | Entered Materials 175 | -10/Materials | Discovered new exit (range 11) 196 | -10/Materials | Discovered new exit (range 7) 297 | -10/Materials | Discovered new exit (range 10) 305 | -10/Materials | Build established: Mutant 668 | -10/Materials | Core integrity fell below 50% 692 | -10/Materials | Identified exit to Materials 1322 | -10/Materials | Entered Mines 1364 | -10/Mines | Learned Materials stockpile data 1381 | -10/Mines | Deemed a non-threat by the Exiles lab entrance 1383 | -10/Mines | Discovered new exit (range 5) 1566 | -10/Mines | Discovered exit to Materials (range 11) 1611 | -10/Mines | Learned 8 Materials zone layouts 1655 | -10/Mines | Found a hidden stash of uninstalled traps 1875 | -10/Mines | Entered Materials 1875 | -9/Materials | Evolved 2 slots: Utility x2 1876 | -9/Materials | Identified exit to Materials 2074 | -9/Materials | Self-destructed Last Messages --------------- 01992_ K-01 Serf collects debris. 01992_ Dropped Imp. EM Shotgun. 01993_ Dropped Ion Engine. 01994_ Acquired Imp. EM Shotgun. 01995_ Acquired 38 matter. 01998_ K-01 Serf collects debris. 02003_ Acquired 29 matter. 02004_ K-01 Serf collects debris. 02007_ K-01 Serf cleans the Repair Station. 02029_ Flight Unit destroyed. 02031_ L-31 Rogue destroyed. 02041_ G-34 Mercenary misfires. 02042_ Chain reaction triggered in Ion Engine. 02042_ G-34 Mercenary destroyed. 02061_ W-16 Scout sends out distress signal. 02062_ O-16 Technician: "IFF HANDSHAKE FAILED. SECURING TERMINAL." 02066_ ALERT: Hostiles spotted, dispatching reinforcements to Terminal M009. 02071_ W-16 Scout destroyed. Map ----- +----------------------------------------------------+ | | | | | | | | | | | | | | | | | | | ?????#??????????#?#??#???#?????????????????????### | | ?????#??##########?###########?????????????????# | | ????????# #?# #?????????????????# | | ????????# """ #?# ##????????????????# | | ???#????# "R" #?# #?????????????????# | | ???##???# "[" = #?# #????#????????????# | | ??????#?# =[#?# #?????????????????# | | ?#??????# " " ### #?????????????????# | | ????#???# " * "## #?????????????????# | | ????????# "" "## #?????????????????### | | ????????# ! =* *"######+#####???????????????????? | | #############/######## #?????????????????????? | | # %%[ ! #????????????########## | | # !%=| ##???????????# | | # =%/!= #????????#???# = | | #####################;[% #????????????# | | ??????????????#?????##;= @###########???# | | ???#??????????##?????## # #???# | | ????#??##?????#?#???#?# # #???# | | ?????????#??#????????## # """ """ #???# "T" | | #??????#??????????????# # """ """ #???# """ | | #???#?????????????????# %+ """ """ #???###### ### | | #???????#???????#???#?# # #???# ######## | | ####################### # ""T"" #???# # | | + ## # # """"" #???# """ # | | ??????????????????????# ##?#???????????????????? | | ?????????????????? ???# b#??????????????????????? | | ??????????????????????# g #??????????????????????? | | ??????????????????????# #??????????????????????? | | ??????????????????????# ???????????????????????? | | ??????????????????????# Y?????]?????????????????? | | ??????????????????????? ???????????????????????? | | ?????????????????????????????????????????????????? | | ?????????????????????????????????????????????????? | | ?????????????????????????????????????????????????? | | ?????????????????????????????????????????????????? | | ?????????????????????????????????????????????????? | | ?????????????????????????????????????????????????? | | ?????????????????????????????????????????????????? | | ?????????????????????????????????????????????????? | | ?????????????????????????????????????????????????? | +----------------------------------------------------+ Best States ------------- Heat Dissipation 28 Energy Generation 14 Energy Capacity 250 Matter Stores 300 Matter Capacity 300 Sight Range 16 Terrain Scan Range 14 Terrain Scan Density 10 Armor Coverage 150 Core Shielding 20 Evasion (%) 55 Recoil Reduction 2 Item Schematics ----------------- None Robot Schematics ------------------ None Fabricated ------------ Nothing Repaired ---------- Nothing Alien Tech Used ----------------- None Achievements -------------- None Challenges ------------ None Game ------ Seed BehemothFieldthrustMeganuke Manual? 0 Play Time 00:23:01 Cumulative 131.0 hours Start 2025.05.08 @ 17:59:00 End 2025.05.08 @ 19:11:26 Sessions 1 Manual Loads 0 Difficulty Rogue Special Mode None Game No. 125 Rogue 125 Adventurer 0 Explorer 0 Win Type - Total 1 Types 1/0/0/0/0/0/0/0/0/0 Lore% 26 Gallery% 42 Achievement% 37 Wizard Run 0 Options --------- Layout 1 ASCII 0 Keyboard 0 Movement Numpad Keybinds 0 Fullscreen 1 Font 24/Smallcaps Map View 50x35 Zoom Use 0% Tactical HUD 1 Map Filters NONE Filters NONE Steam 1 RUN: fecea67e-e47a-4eb8-85d2-1dd0ceec7798